Cogmind - Beta 14 @@@ ROGUE MODE // 2024.11.30 @ 21:32:00 Player: Shimmyarah Result: Destroyed by as-53872 with Assembled Heavy Rifle Performance ------------- Evolutions (1) 500 Regions Visited (3) 600 Robots Destroyed (6) 30 Value Destroyed (36) 36 Prototype IDs (2) 40 Alien Tech Used (0) 0 Bonus (0) 0 TOTAL SCORE: 1206 Bonus ------- None Cogmind --------- Core Integrity 0/400 Matter 291/300 Energy 100/100 System Corruption 2% Temperature Cool (0) Movement Core (100) Ox1 Location -9/Mines Parts ------- > --- POWER (1) -------- (None) > --- PROPULSION (4) --- (None) > --- UTILITY (2) ------ Small Storage Unit Improved Terrain Scanner > --- WEAPON (2) ------- (None) > --- INVENTORY (8) ---- Ion Engine Light Treads Light Treads Flight Unit Power Shielding EM Pulse Gun EM Pulse Gun Mining Claw Peak State ------------ > --- POWER ------------ Ion Engine > --- PROPULSION ------- Aluminum Leg Aluminum Leg > --- UTILITY ---------- Small Storage Unit Seismic Detector > --- WEAPON ----------- Small Laser Small Laser > --- INVENTORY -------- Ion Engine Light Treads Light Treads Wheel Compact Wheel Improved Terrain Scanner EM Pulse Gun Mining Laser [Rating: 8] Favorites ----------- Power Ion Engine Engine Ion Engine Propulsion Aluminum Leg Leg Aluminum Leg Wheel Wheel Flight Unit Flight Unit Utility Small Storage Unit Device Seismic Detector Storage Small Storage Unit Weapon Small Laser Energy Gun Small Laser Build | -11 -10 -9 -9 ------- Run | Yrd Mat Mat Min Slots Evolved 2 | . . 2 . Power . | . . . . Propulsion 2 | . . 2 . Utility . | . . . . Weapon . | . . . . Parts Attached 12 | 2 7 . 3 Power 1 | . 1 . . Engine 1 | . 1 . . Core . | . . . . Reactor . | . . . . Propulsion 7 | . 5 . 2 Treads . | . . . . Leg 1 | . 1 . . Wheel 5 | . 4 . 1 Hover . | . . . . Flight 1 | . . . 1 Utility 2 | 1 . . 1 Device 2 | 1 . . 1 Storage . | . . . . Processor . | . . . . Hackware . | . . . . Protection . | . . . . Artifact . | . . . . Weapon 2 | 1 1 . . Energy Gun 2 | 1 1 . . Energy Cannon . | . . . . Ballistic Gun . | . . . . Ballistic Cannon . | . . . . Launcher . | . . . . Special Weapon . | . . . . Impact Weapon . | . . . . Slashing Weapon . | . . . . Piercing Weapon . | . . . . Special Melee Weapon . | . . . . Unidentified Prototypes . | . . . . Parts Lost 7 | . . 6 1 Power 1 | . . 1 . Propulsion 3 | . . 2 1 Utility 1 | . . 1 . Weapon 2 | . . 2 . Highest Loss Streak 6 | . . 6 1 To Critical Strikes . | . . . . Average Slot Usage (%) 59 | . 97 60 29 Engine 6 | . 14 8 . Leg 7 | . 17 7 . Wheel 8 | . 8 8 8 Device 10 | . 14 5 9 Storage 11 | . 14 11 11 Energy Gun 13 | . 28 18 . Peak Build Rating 8 | 8 8 8 5 Average Rating 6 | 6 7 6 4 On Entrance 6 | 6 8 8 2 Naked Turns . | . . . . Heaviest Build 13 | 13 13 13 6 Greatest Support 20 | 20 20 10 16 Greatest Overweight (x) 1 | . 1 1 1 Average Overweight (x) . | . . . . Largest Inventory Capacity 8 | 8 8 8 8 Average Capacity 8 | 8 8 8 8 Most Carried 8 | 8 8 8 8 Average Carried 7 | 6 7 8 6 Final Capacity 8 | 8 8 8 8 Final Carried 8 | 8 8 8 8 Class Distribution -------------------- 100% | Mutant Dominant Class ---------------- Mutant | -10/Materials Mutant | -9/Materials Mutant | -9/Mines Resources | -11 -10 -9 -9 ----------- Run | Yrd Mat Mat Min Matter Collected 268 | 220 . . 48 Remotely . | . . . . Salvage Created 228 | 173 55 . . Parts 11 | 9 2 . . Haulers Intercepted 1 | . 1 . . Recyclers Shooed 1 | . 1 . . Parts Field Recycled . | . . . . Retrieved Matter . | . . . . Parts Self-Destructed . | . . . . Prevented . | . . . . Kills | -11 -10 -9 -9 ------- Run | Yrd Mat Mat Min Combat Hostiles Destroyed . | . . . . Classes Destroyed 3 | 2 1 . . Tunneler 4 | 4 . . . Hauler 1 | . 1 . . Recycler 1 | 1 . . . Best Kill Streak 3 | 3 1 . . Combat Bots Only . | . . . . Max Kills in Single Turn 1 | 1 1 . . Gunslinging . | . . . . Exploded . | . . . . Melee . | . . . . Uniques/NPCs Destroyed . | . . . . Combat | -11 -10 -9 -9 -------- Run | Yrd Mat Mat Min Hostile Shots Fired 104 | . 6 72 26 Missed 26 | . 1 21 4 Damage Taken 927 | . 80 565 282 Core 433 | . 20 229 184 Absorbed by Shields . | . . . . Core Remaining (%) 96 | 100 92 . . Volleys Fired 18 | 14 2 2 . Largest 2 | 2 2 2 . Hottest 80 | 80 80 80 . Shots Fired 35 | 28 3 4 . Gun 35 | 28 3 4 . Cannon . | . . . . Launcher . | . . . . Special . | . . . . Kinetic . | . . . . Thermal 35 | 28 3 4 . Explosive . | . . . . Electromagnetic . | . . . . Robot Hit Streak 5 | 5 2 3 . Robot Miss Streak 3 | 3 1 1 . Penetration Max . | . . . . Secondary Targets . | . . . . Shots Hit Robots 22 | 18 2 2 . Core Hits 13 | 6 3 4 . Critical Kills . | . . . . Critical Parts Destroyed . | . . . . Critical Strikes . | . . . . Melee Attacks . | . . . . Impact . | . . . . Slashing . | . . . . Piercing . | . . . . Sneak Attacks . | . . . . Combat Hostiles . | . . . . Follow-up Attacks . | . . . . Damage Inflicted 280 | 199 47 34 . Guns 243 | 199 22 22 . Cannons . | . . . . Explosions . | . . . . Melee . | . . . . Ramming 37 | . 25 12 . Kinetic . | . . . . Thermal 243 | 199 22 22 . Explosive . | . . . . Electromagnetic . | . . . . Impact . | . . . . Slashing . | . . . . Piercing . | . . . . Highest Corruption 2 | . . 2 2 Average Corruption 2 | . . 2 2 Corruption Purged . | . . . . Corruption Blocked . | . . . . Effects 3 | . . . 3 Matter Fused 1 | . . . 1 Energy Discharges 1 | . . . 1 Data Loss (minor) 1 | . . . 1 Overload Shots . | . . . . Overflow Damage . | . . . . Projectiles . | . . . . Explosions . | . . . . Melee . | . . . . Knockbacks 1 | . 1 . . Impact 1 | . 1 . . Kinetic . | . . . . Secondary . | . . . . Self-Inflicted Damage 17 | . 12 5 . Shots . | . . . . Rammed 8 | . 3 5 . Targets Rammed 8 | . 3 5 . Kicked . | . . . . Crushed . | . . . . Highest Temperature 144 | 144 18 36 . Average Temperature 57 | 66 12 17 . Received Heat Transfer 348 | . . 228 120 Siege Activations . | . . . . Robots Corrupted . | . . . . Combat Hostiles . | . . . . Parts Fried . | . . . . Impact Corruptions . | . . . . Robots Melted . | . . . . Combat Hostiles . | . . . . Parts Melted 2 | 2 . . . Heat Transferred 550 | 450 50 50 . Parts Sabotaged . | . . . . Parts Stolen . | . . . . Parts Stripped . | . . . . Power Chain Reactions . | . . . . Alert | -11 -10 -9 -9 ------- Run | Yrd Mat Mat Min Peak Influence 84 | 25 59 84 74 Initial 24 | . 16 24 9 Average 36 | 13 33 57 40 Maximum Alert Level . | . . . . Low Security (%) 100 | 100 100 100 100 Level 1 . | . . . . Level 2 . | . . . . Level 3 . | . . . . Level 4 . | . . . . Level 5 . | . . . . High Security . | . . . . Max Security . | . . . . Squads Dispatched 2 | . . 1 1 Investigation 1 | . . . 1 Extermination . | . . . . Reinforcement 1 | . . 1 . Assault . | . . . . Garrison . | . . . . Intercept . | . . . . Searches Triggered . | . . . . Construction Impeded . | . . . . Haulers Reinforced . | . . . . Active Scanning Responses . | . . . . Cargo Convoy Interrupts . | . . . . Stealth | -11 -10 -9 -9 --------- Run | Yrd Mat Mat Min Distress Signals . | . . . . Communications Jammed . | . . . . Distress Signals . | . . . . Times Spotted 34 | . 5 17 12 Peak Tracking Total 15 | . 4 15 9 Tactical Retreats 2 | . . . 2 Traps | -11 -10 -9 -9 ------- Run | Yrd Mat Mat Min Traps Triggered 3 | . 3 . . Indirectly . | . . . . Trap Hack Attempts . | . . . . Triggered . | . . . . Disarmed . | . . . . Reprogrammed . | . . . . Reused . | . . . . Traps Extracted . | . . . . Installed . | . . . . Triggered . | . . . . Machines | -11 -10 -9 -9 ---------- Run | Yrd Mat Mat Min Machines Disabled . | . . . . Max in Single Turn . | . . . . Machines Repaired . | . . . . Machines Dismantled . | . . . . Machines Sabotaged . | . . . . Overloaded Fab Kills . | . . . . Hacking | -11 -10 -9 -9 --------- Run | Yrd Mat Mat Min Machines Accessed 4 | . 3 . 1 Terminals 4 | . 3 . 1 Fabricators . | . . . . Repair Stations . | . . . . Recycling Units . | . . . . Scanalyzers . | . . . . Garrison Access . | . . . . Total Hacks 19 | . 14 . 5 Successful 15 | . 12 . 3 Failed 4 | . 2 . 2 Catastrophic . | . . . . Database Lockouts . | . . . . Manual 10 | . 10 . . Terminals 19 | . 14 . 5 Fabricators . | . . . . Repair Stations . | . . . . Recycling Units . | . . . . Scanalyzers . | . . . . Garrison Access . | . . . . Terminal Hacks 6 | . 3 . 3 Prototype ID Bank 1 | . 1 . . Alert Level 2 | . . . 2 Hauler Manifests 1 | . 1 . . Zone Layout 2 | . 1 . 1 Fabricator Hacks . | . . . . Repair Station Hacks . | . . . . Recycling Unit Hacks . | . . . . Scanalyzer . | . . . . Garrison Access Hacks . | . . . . Unauthorized Hacks 9 | . 9 . . Terminals 9 | . 9 . . Track 1 | . 1 . . Assimilate 1 | . 1 . . Botnet 3 | . 3 . . Operators 1 | . 1 . . Skim 3 | . 3 . . Fabricators . | . . . . Repair Stations . | . . . . Recycling Units . | . . . . Scanalyzers . | . . . . Garrison Access . | . . . . Data Cores Recovered . | . . . . Used . | . . . . Hacking Detections 4 | . 3 . 1 Full Trace Events 1 | . . . 1 Feedback Events . | . . . . Feedback Blocked . | . . . . Robot Schematics Acquired . | . . . . Robots Built . | . . . . Authchips . | . . . . Time . | . . . . Total Robot Build Rating . | . . . . Part Schematics Acquired . | . . . . Parts Built . | . . . . Authchips . | . . . . Time . | . . . . Total Part Build Rating . | . . . . Parts Repaired . | . . . . Time . | . . . . Parts Recycled . | . . . . Recycled Matter . | . . . . Retrieved Matter . | . . . . Retrieved Components . | . . . . Parts Scanalyzed . | . . . . Part Schematics Acquired . | . . . . Parts Damaged . | . . . . Bothacking | -11 -10 -9 -9 ------------ Run | Yrd Mat Mat Min Used RIF Installer . | . . . . Robots Hacked . | . . . . Non-combat . | . . . . Combat . | . . . . Robot Hacks Applied . | . . . . Relay Couplers Released . | . . . . Fabnet Peak Effective % . | . . . . Robots Rewired . | . . . . Allies Hacked . | . . . . Hacks Repelled . | . . . . Allies | -11 -10 -9 -9 -------- Run | Yrd Mat Mat Min Total Allies . | . . . . Largest Group . | . . . . Highest-Rated Group . | . . . . Highest-Rated Ally . | . . . . Total Orders . | . . . . Ally Attacks . | . . . . Total Damage . | . . . . Kills . | . . . . Allies Corrupted . | . . . . Allies Melted . | . . . . Intel | -11 -10 -9 -9 ------- Run | Yrd Mat Mat Min Robot Analysis Total . | . . . . Derelict Logs Recovered 1 | . . . 1 Drone Launches . | . . . . Drone Recoveries . | . . . . Exploration | -11 -10 -9 -9 ------------- Run | Yrd Mat Mat Min Turns Passed 510 | 109 134 100 167 Spaces Moved 390 | 26 109 94 161 Core 51 | . . 12 39 Treads . | . . . . Legs 62 | 26 36 . . Wheels 277 | . 73 82 122 Hover . | . . . . Flight . | . . . . Fastest Speed 80 | 120 80 80 100 Average Speed 101 | 120 103 95 100 Slowest Speed 190 | 120 190 100 100 Overloaded Moves . | . . . . Propulsion Burnouts . | . . . . Robots Hopped . | . . . . Cave-ins Triggered . | . . . . Exploration Rate (%) 23 | 4 31 21 37 Regions Visited 3 Branch Regions 1 Pre-discovered Areas . | . . . . Known Exits Taken . | . . . . Unknown Exits Taken 3 | 1 1 1 . Scrap Searched 1 | . . . 1 Spaces Dug . | . . . . Terrain Destroyed . | . . . . Melee . | . . . . Projectile . | . . . . AOE . | . . . . Terrain Rammed . | . . . . Walls Destroyed . | . . . . Machines Disabled . | . . . . Actions | -11 -10 -9 -9 --------- Run | Yrd Mat Mat Min Total 466 | 75 124 100 167 Wait 32 | 32 . . . Move 387 | 25 108 93 161 Hop . | . . . . Pick Up 6 | 2 2 . 2 Fast Attach 5 | 1 4 . . Attach 3 | . . . 3 Detach 1 | . . . 1 Swap 4 | 1 3 . . Drop 2 | . 2 . . Fire 18 | 14 2 2 . Melee . | . . . . Ram 8 | . 3 5 . Kick . | . . . . Crush . | . . . . Escape Stasis . | . . . . Rewire . | . . . . Trap . | . . . . Miscellaneous . | . . . . Route ------- -11/Scrapyard -10/Materials -9/Materials -9/Mines (discovered 1 exit: Mat) History --------- Turn | Location | Event 12 | -11/Scrapyard | Discovered new exit (range 2) 110 | -11/Scrapyard | Entered Materials 240 | -10/Materials | Discovered new exit (range 5) 244 | -10/Materials | Entered another Materials area 244 | -9/Materials | Evolved 2 slots: Propulsion x2 311 | -9/Materials | Build established: Mutant 337 | -9/Materials | Discovered new exit (range 8) 340 | -9/Materials | Core integrity fell below 50% 344 | -9/Materials | Entered Mines 364 | -9/Mines | Lost 6 parts (1p2n1u2w) 415 | -9/Mines | Core integrity fell below 20% 475 | -9/Mines | Identified exit to Materials 478 | -9/Mines | Assembled infested the area 511 | -9/Mines | Destroyed by as-53872 with Assembled Heavy Rifle Last Messages --------------- 00468_ Searching scrap... 00468_ Found EM Pulse Gun. 00468_ Found Aluminum Leg. 00468_ Found Power Shielding. 00468_ Found 60 Matter. 00469_ Acquired 48 matter. 00470_ Acquired Power Shielding. 00472_ Acquired EM Pulse Gun. 00475_ Acquired derelict log, extracted data. Loading 1 Mines exit... 00478_ ALERT: Infestation in the mines, dispatching Demolisher response squad. 00485_ Com. Wheel destroyed. 00486_ K-01 Serf collects debris. 00502_ System corrupted: Matter fused (-9). 00502_ K-01 Serf collects debris. 00505_ as-46158 sneak attacks. 00505_ K-01 Serf destroyed. 00508_ as-17898 destroyed. 00509_ L-31 Rogue destroyed. Map ----- +----------------------------------------------------+ | ?????## ##??????# #????????# # | | ?????# #??#????# #????????# # | | ?????# ## #???????# #????????# | | ?????## #### ##??????## #??#??##?# | | ??????##????################ ########## | | ?????????????????# | | ????????????????## ######### ########### | | ???????????????#?# #??#???## ##????????# | | ?????????????????# #????#??# #???????#?# | | ??????????#???#??# ###???#?# #?????????# | | ????????????###??# ###??#??# #????????## | | ???????????## #### ##????# #?#???#### | | ???????????# #????# #????## | | ???????????# """ #????# ##??## | | #??????????#### """ #????# #???# ## | | ???????#??###### """ #????# #???# #### | | ??????????# % ###### ##??# #??# | | ??????????# = ### ## ##### ##??? | | ????????#?# ########### ## ###### | | ??????????# #?????????# | | ??????????# ##?#####?### ## | | ??????????# #### ########## ###### | | ??????????# ### #?????#?# #?#??? | | ??????????# ## #???????# ##????? | | ????????### #??#????# ##???? ? | | ?????????# @ ##???### ##??????? | | ??#?????# ###???# #???????? | | ????????# # ###### #??????#? | | ????????## ### ## ###$ ##???????? | | ?????????#####?# ### = #####????????? | | ??????????#????#a #?## *%= ###??????????? | | ???????????????# #??## !a* #??????????? | | ???????? ? ????# #???## !%aa#??????????? | | ???????????????# #????###### #??????????? | | ???????????????# #?????????# #??????????? | | ???????????????= #????????## #??????????? | | ???????????????%###?????????# ??????????? | | ???????????????[????????????# #??????????? | | ???????????????%?????????? ? #??????????? | | ???????????????[????????????#$#??????????? | | ????????????????????????????# ??????????? | | ????????????????????????????# #??????????? | | ????????????????????????????? ???????????? | | ????????????????????????????? ???????????? | | ????????????????????????#???? ???????????? | | ????????????????????????????? ???????????? | | ????????????????????????????? ???????????? | | ????????????????????????????? ???????????? | | ????????????????????????????? ???????????? | | ?????????????????????????????????????????? | +----------------------------------------------------+ Best States ------------- Heat Dissipation 28 Energy Generation 10 Energy Capacity 250 Matter Stores 300 Matter Capacity 300 Sight Range 16 Terrain Scan Range 16 Terrain Scan Density 10 Evasion (%) 55 Item Schematics ----------------- None Robot Schematics ------------------ None Fabricated ------------ Nothing Alien Tech Used ----------------- None Achievements -------------- None Challenges ------------ None Game ------ Seed KineticSpectralTrap Manual? 0 Play Time 00:11:00 Cumulative 82.5 hours Start 2024.11.30 @ 21:23:19 End 2024.11.30 @ 21:32:00 Sessions 1 Manual Loads 0 Difficulty Rogue Special Mode None Game No. 123 Rogue 123 Adventurer 0 Explorer 0 Win Type - Total 0 Types 0/0/0/0/0/0/0/0/0 Lore% 54 Gallery% 43 Achievement% 32 Wizard Run 0 Options --------- Layout 1 ASCII 0 Keyboard 0 Movement Mouse Keybinds 0 Fullscreen 1 Font 24/Smallcaps Map View 50x40 Zoom Use 0% Tactical HUD 1 Map Filters NONE Filters NONE Steam 1 RUN: 9695afd1-73d0-4dee-9e31-8f0df27eab71